bitfinex-derivatives/quotes_ETHF0:USTF0_20251031
["timestamp","ask_amount","ask_price","bid_price","bid_amount"]
[1761892957715,0.01654499,3828.9,3828.8,9.88926435]
[1761892958114,0.36154499,3828.9,3828.8,9.88926435]
[1761892958712,0.58084499,3828.9,3828.8,9.88926435]
[1761892959320,0.79874499,3828.9,3828.8,9.88926435]
[1761892961623,0.79874499,3828.9,3828.8,0.81126435]
[1761892961811,0.79874499,3828.9,3828.8,9.88826435]
[1761892962518,0.01654499,3828.9,3828.8,11.23912034]
[1761892964822,0.01654499,3828.9,3828.8,13.11822673]
[1761892965522,0.35704499,3828.9,3828.8,11.23912034]
[1761892966022,0.01654499,3828.9,3828.8,11.23912034]
[1761892966223,0.01654499,3828.9,3828.8,14.44692034]
[1761892966625,0.01654499,3828.9,3828.8,5.36992034]
[1761892966926,0.01654499,3828.9,3828.8,14.44592034]
[1761892967824,0.35704499,3828.9,3828.8,14.44592034]
[1761892968024,0.01654499,3828.9,3828.8,14.44592034]
[1761892972426,0.35704499,3828.9,3828.8,5.36992034]
[1761892972626,0.35704499,3828.9,3828.8,14.44492034]
[1761892974226,0.01654499,3828.9,3828.8,14.44492034]
[1761892975320,0.57894499,3828.9,3828.8,3.98446435]
[1761892975524,0.57894499,3828.9,3828.8,13.05846435]
[1761892976324,0.35704499,3828.9,3828.8,13.05846435]
[1761892976524,0.01654499,3828.9,3828.8,13.05846435]
[1761892977527,0.35704499,3828.9,3828.8,13.05846435]
[1761892977730,0.57894499,3828.9,3828.8,13.05846435]
[1761892979327,0.79674499,3828.9,3828.8,9.85066435]
[1761892979527,0.79674499,3828.9,3828.8,0.77666435]
[1761892979829,0.79674499,3828.9,3828.8,9.07506435]
[1761892981235,0.79674499,3828.9,3828.8,0.00206435]
[1761892981441,0.87514499,3828.9,3828.8,0.00206435]
[1761892981642,0.5624,3828.0,3827.9,11.41970639]
[1761892982135,0.57894499,3828.0,3827.9,9.5406]
[1761892982537,0.58107308,3828.0,3827.9,9.87240617]
[1761892982842,0.58107308,3828.0,3827.9,10.07632073]
[1761892984638,0.01867308,3828.0,3827.9,10.07632073]
[1761892986443,0.01391069,3828.0,3827.9,10.07632073]
[1761892987144,0.01391069,3828.0,3827.9,50.87632073]
[1761892990246,0.01391069,3828.0,3827.9,42.11032073]
[1761892990447,0.01391069,3828.0,3827.9,51.18232073]
[1761892991449,0.01391069,3828.0,3827.9,52.28359123]
[1761892991750,0.01391069,3828.0,3827.9,43.21159123]
[1761892992051,0.01391069,3828.0,3827.9,52.28459123]
[1761892995254,0.01391069,3828.0,3827.9,52.28359123]
[1761892995850,0.97461069,3828.0,3827.9,52.28359123]
[1761892996552,0.97461069,3828.0,3827.9,0.00255617]
[1761892996755,0.97461069,3828.0,3827.9,9.07455617]
[1761892998260,0.97461069,3828.0,3827.9,9.30655617]
[1761892998958,0.97461069,3828.0,3827.9,0.00255617]
[1761892999559,0.97461069,3828.0,3827.9,0.23455617]
[1761892999949,4.18241069,3828.0,3827.9,0.23455617]
[1761893000157,4.18241069,3828.0,3827.9,0.00255617]
[1761893002763,4.18241069,3828.0,3827.9,0.79005617]
[1761893003162,4.18241069,3828.0,3827.9,1.89132667]
[1761893003357,3.81641069,3828.0,3827.9,1.89132667]
[1761893003564,3.22171069,3828.0,3827.9,1.89132667]
[1761893005668,3.79351069,3828.0,3827.9,10.96232667]
[1761893006765,3.22171069,3828.0,3827.9,10.96232667]
[1761893007469,3.56391069,3828.0,3827.9,10.96232667]
[1761893008058,3.79351069,3828.0,3827.9,10.96232667]
[1761893009561,0.58571069,3828.0,3827.9,10.96232667]
[1761893011274,0.94351069,3828.0,3827.9,0.00255617]
[1761893015564,0.94351069,3828.0,3827.9,1.89132667]
[1761893015767,0.58571069,3828.0,3827.9,1.89132667]
[1761893016366,0.01391069,3828.0,3827.9,1.89132667]
[1761893017476,0.35611069,3828.0,3827.9,1.89132667]
[1761893018377,0.01391069,3828.0,3827.9,1.89132667]
[1761893019975,0.01391069,3828.0,3827.9,4.87170356]
[1761893020177,0.01391069,3828.0,3827.9,3.77043306]
[1761893026482,0.59631069,3828.0,3827.9,10.95932667]
[1761893026981,0.97441069,3828.0,3827.9,0.00255617]
[1761893027273,0.97441069,3828.0,3827.9,9.06955617]
[1761893028577,0.97441069,3828.0,3827.9,0.00255617]
[1761893031580,0.97441069,3828.0,3827.3,0.32931]
[1761893031581,0.8204,3827.4,3827.3,0.32931]
[1761893031786,0.8204,3827.4,3827.3,9.067]
[1761893031988,0.8204,3827.2,3827.1,0.32932]
[1761893032189,0.8204,3827.2,3827.1,9.61772]
[1761893032482,0.8321826,3827.2,3827.1,11.50062027]
[1761893032688,0.5941826,3827.2,3827.1,52.30372825]
[1761893033081,0.8321826,3827.2,3827.1,52.30372825]
[1761893033781,0.8321826,3827.2,3827.1,51.97440825]
[1761893034183,0.8321826,3827.2,3827.1,50.87313775]
[1761893034387,0.8321826,3827.2,3827.1,51.97440825]
[1761893035688,0.8321826,3827.2,3827.1,51.42927848]
[1761893035879,4.0399826,3827.2,3827.1,0.00310798]
[1761893037283,4.0399826,3827.2,3826.4,1.52130639]
[1761893037284,0.1401,3827.0,3826.4,1.52130639]
[1761893037500,0.5824,3825.9,3825.8,1.8911705]
[1761893037690,0.5824,3825.9,3825.5,0.34038821]
[1761893037691,0.4676,3825.7,3825.5,3.2078]
[1761893037893,0.2997,3825.0,3824.8,0.7899]
[1761893038093,0.2296,3825.0,3824.9,1.8911705]
[1761893038395,0.8204,3824.8,3824.7,0.02614618]
[1761893038602,4.0399826,3824.8,3824.7,0.58223515]
[1761893038792,0.9255,3824.0,3823.9,0.20585339]
[1761893039093,3.2078,3824.6,3824.5,0.9231]
[1761893039293,3.2078,3824.6,3823.9,0.99575339]
[1761893039294,0.9605,3824.0,3823.9,0.99575339]
[1761893039494,3.2078,3824.2,3824.1,0.7899]
[1761893039696,0.2296,3824.1,3823.5,3.2078]
[1761893039897,0.2296,3824.0,3823.5,4.98891894]
[1761893040196,0.8204,3824.5,3824.4,0.2214]
[1761893040393,0.8204,3824.5,3824.4,1.8911705]
[1761893040797,0.4676,3824.5,3824.4,0.7899]
[1761893041196,0.23289022,3825.0,3824.9,0.7899]
[1761893041397,0.23289022,3825.0,3824.9,9.9229]
[1761893041696,0.00329022,3825.0,3824.9,9.9229]
[1761893042089,0.00329022,3825.0,3824.9,11.0241705]
[1761893042493,0.00329022,3825.0,3824.9,9.9229]
[1761893043098,3.21109022,3825.0,3824.9,9.9229]
[1761893044900,3.21109022,3825.0,3824.9,11.0241705]
[1761893047004,3.21109022,3825.0,3824.9,0.7899]
[1761893047305,3.44069022,3825.0,3824.9,9.6339]
[1761893047993,3.21109022,3825.0,3824.9,10.7351705]
[1761893048200,3.21109022,3825.0,3824.9,51.5351705]
[1761893048706,3.21109022,3825.0,3824.9,50.4339]
[1761893049207,3.44069022,3825.0,3824.9,41.5899]
[1761893049506,3.44069022,3825.0,3824.9,50.7329]
[1761893050005,3.79349022,3825.0,3824.9,50.7329]
[1761893050200,4.03149022,3825.0,3824.9,50.7329]
[1761893050406,4.03149022,3825.0,3824.9,9.9329]
[1761893051008,3.67869022,3825.0,3824.9,9.9329]
[1761893051206,4.02559022,3825.0,3824.9,9.9329]
[1761893051602,4.02559022,3825.0,3824.9,9.9545]
[1761893051802,3.67869022,3825.0,3824.9,9.9545]
[1761893052512,4.02559022,3825.0,3824.9,9.9545]
[1761893052810,3.21109022,3825.0,3824.9,10.28401]
[1761893053207,3.2078,3825.4,3825.3,0.32948]
[1761893053405,3.2078,3825.4,3825.3,10.28998]
[1761893054307,3.99721087,3825.4,3825.3,10.28998]
[1761893057113,3.65031087,3825.4,3825.3,10.28998]
[1761893057308,3.42831087,3825.4,3825.3,10.28998]
[1761893057506,3.20971087,3825.4,3825.3,10.28998]
[1761893059515,3.43261087,3825.4,3825.3,10.28998]
[1761893059719,3.20971087,3825.4,3825.3,10.28998]
[1761893060218,3.20971087,3825.4,3825.3,9.83518]
[1761893060219,3.99431087,3825.4,3825.3,9.83518]
[1761893060411,3.43261087,3825.4,3825.3,10.29358]
[1761893060818,3.20971087,3825.4,3825.3,10.29358]
[1761893061012,0.00191087,3825.4,3825.3,10.29358]
[1761893062719,0.22481087,3825.4,3825.3,10.29358]
[1761893063118,0.56411087,3825.4,3825.3,10.29358]
[1761893063619,0.22481087,3825.4,3825.3,10.29358]
[1761893063821,0.00191087,3825.4,3825.3,10.29358]
[1761893066020,0.22481087,3825.4,3825.3,1.14458]
[1761893066220,0.22481087,3825.4,3825.3,10.30058]
[1761893066421,0.56411087,3825.4,3825.3,10.30058]
[1761893066626,0.44721087,3825.4,3825.3,10.30058]
[1761893066823,0.78651087,3825.4,3825.3,10.30058]
[1761893068327,0.44721087,3825.4,3825.3,10.30058]
[1761893068528,0.22481087,3825.4,3825.3,10.30058]
[1761893069424,0.00191087,3825.4,3825.3,1.14458]
[1761893069722,0.00191087,3825.4,3825.3,10.29558]
[1761893070330,0.22481087,3825.4,3825.3,9.9661]
[1761893070918,0.56411087,3825.4,3825.3,0.8151]
[1761893071129,3.99431087,3825.4,3825.3,9.9641]
[1761893071628,3.43261087,3825.4,3825.3,9.9641]
[1761893072029,3.77191087,3825.4,3825.3,9.9641]
[1761893072230,3.43261087,3825.4,3825.3,9.9641]
[1761893072422,3.20971087,3825.4,3825.3,9.9641]
[1761893073230,3.20971087,3825.4,3825.3,9.5057]
[1761893073231,3.99431087,3825.4,3825.3,9.5057]
[1761893073432,3.99431087,3825.4,3825.3,9.9641]
[1761893074833,3.65501087,3825.4,3825.3,9.9641]
[1761893075332,3.43261087,3825.4,3825.3,9.9641]
[1761893076626,3.20971087,3825.4,3825.3,9.9641]
[1761893077527,3.43261087,3825.4,3825.3,9.9641]
[1761893078834,3.77191087,3825.4,3825.3,9.9641]
[1761893080134,3.99431087,3825.4,3825.3,9.149]
[1761893080338,3.99431087,3825.4,3825.3,9.5057]
[1761893080537,3.99431087,3825.4,3825.3,9.7325]
[1761893080727,3.99431087,3825.4,3825.3,9.9641]
[1761893080933,3.65501087,3825.4,3825.3,9.9641]
[1761893081433,0.00191087,3825.4,3825.3,9.9641]
[1761893087836,0.00191087,3825.4,3825.3,0.8151]
[1761893088134,0.00191087,3825.4,3825.3,9.9521]
[1761893091242,0.00191087,3825.4,3825.3,0.8151]
[1761893091540,0.00191087,3825.4,3825.3,9.9451]
[1761893093244,0.23661087,3825.4,3825.3,9.9451]
[1761893093446,0.00191087,3825.4,3825.3,9.9451]
[1761893099053,0.23661087,3825.4,3825.3,9.9451]
[1761893099251,0.58501087,3825.4,3825.3,9.9451]
[1761893099654,0.23661087,3825.4,3825.3,9.9451]
[1761893099855,0.58501087,3825.4,3825.3,0.8151]
[1761893100054,0.58501087,3825.4,3825.3,9.9361]
[1761893100256,0.23661087,3825.4,3825.3,9.9361]
[1761893100449,0.00191087,3825.4,3825.3,9.9361]
[1761893100650,0.23661087,3825.4,3825.3,9.9361]
[1761893101055,0.58501087,3825.4,3825.3,9.9361]
[1761893101252,0.00191087,3825.4,3825.3,9.9361]
[1761893102454,0.00191087,3825.4,3825.3,11.29017085]
[1761893103153,0.00191087,3825.4,3825.3,52.09017085]
[1761893103660,3.2078,3825.9,3825.8,1.11323]
[1761893103857,3.2078,3825.9,3825.8,10.22923]
[1761893104258,3.2078,3825.9,3825.8,51.02923]
[1761893104658,0.00295911,3825.9,3825.8,54.23703]
[1761893105059,3.2078,3826.4,3826.3,0.7838]
[1761893105255,3.2078,3826.8,3826.7,0.66086]
[1761893105456,3.2078,3826.8,3826.7,10.45382012]
[1761893105958,3.2078,3827.3,3827.2,0.32931]
[1761893106156,3.2078,3827.7,3827.6,0.7838]
[1761893106357,3.44557577,3827.7,3827.6,0.7838]
[1761893106560,3.79397577,3827.7,3827.6,0.7838]
[1761893107462,3.44557577,3827.7,3827.6,0.7838]
[1761893107965,0.23777577,3827.7,3827.6,0.7838]
[1761893108164,0.00307577,3827.7,3827.6,0.7838]
[1761893113368,0.00307577,3827.7,3827.6,1.88536609]
[1761893114366,0.00307577,3827.7,3827.6,0.7838]
[1761893114562,4.01117577,3827.7,3827.6,9.9038]
[1761893115773,0.2198,3827.2,3827.1,40.8]
[1761893116074,0.4558,3826.8,3826.7,0.00229668]
[1761893116275,1.55736609,3826.8,3826.7,0.00229668]
[1761893116470,1.90186609,3826.8,3826.7,0.00229668]
[1761893116670,5.10966609,3826.8,3826.7,0.00229668]
[1761893117581,5.10966609,3826.8,3826.7,0.57969668]
[1761893117878,5.10966609,3826.8,3826.7,0.00229668]
[1761893120579,4.0081,3826.8,3826.7,0.80479668]
[1761893121180,4.0081,3826.8,3826.7,1.13415668]
[1761893121473,4.0047,3826.8,3826.7,0.58419668]
[1761893121673,4.0047,3826.8,3826.7,0.00229668]
[1761893123181,5.7917,3826.8,3826.7,0.00229668]
[1761893123572,0.457,3826.3,3826.2,9.13]
[1761893123778,0.7981,3825.9,3825.8,0.5819]
[1761893124677,0.7981,3825.9,3825.8,0.58389216]
[1761893124877,0.7981,3825.9,3825.8,0.80449216]
[1761893125080,3.6648,3826.3,3826.2,0.8025]
[1761893125577,4.0059,3826.3,3826.2,0.8025]
[1761893126782,4.0059,3826.3,3825.9,0.8025]
[1761893126783,0.7981,3826.0,3825.9,0.8025]
[1761893127375,0.2314,3825.9,3825.8,0.00199216]
[1761893127582,0.7981,3825.9,3825.8,0.00199216]
[1761893129281,4.0059,3825.9,3825.8,0.00199216]
[1761893132782,0.7981,3824.8,3824.7,0.78183]
[1761893133183,0.7981,3824.8,3824.7,41.58183]
[1761893133383,0.7981,3824.8,3824.7,41.93203]
[1761893133587,0.7981,3824.8,3824.7,41.6025]
[1761893133787,0.4600336,3824.8,3824.7,0.80453236]
[1761893133987,0.2344336,3824.8,3824.7,0.80453236]
[1761893134291,0.0030336,3824.8,3824.7,0.80453236]
[1761893134692,0.1303,3825.5,3825.4,0.8025]
[1761893134693,3.4392,3825.5,3825.4,0.8025]
[1761893134894,3.7803,3825.5,3825.4,0.8025]
[1761893135285,3.2078,3825.5,3825.4,0.8025]
[1761893135692,3.2096405,3825.5,3825.4,0.8025]
[1761893135994,3.4410405,3825.5,3825.4,0.8025]
[1761893136384,3.2096405,3825.5,3825.4,1.13197]
[1761893137388,0.0018405,3825.5,3825.4,1.13197]
[1761893138993,0.0018405,3825.5,3825.4,41.93197]
[1761893142599,0.0018405,3825.5,3825.4,51.05197]
[1761893147493,0.5407,3826.1,3826.0,0.472]
[1761893147698,0.2148,3826.1,3826.0,0.9561]
[1761893148588,0.21794745,3826.1,3826.0,0.9561]
[1761893149384,0.00314745,3826.1,3826.0,0.9561]
[1761893149590,0.00314745,3826.1,3826.0,2.0589389]
[1761893149991,3.2078,3826.8,3826.7,0.8268]
[1761893150396,3.4226,3826.8,3826.7,0.8268]
[1761893150888,3.2078,3826.8,3826.7,0.8268]
[1761893151091,3.21020698,3826.8,3826.7,0.8268]
[1761893151297,3.21020698,3826.8,3826.7,1.0381624]
[1761893152294,3.21020698,3826.8,3826.7,41.8381624]
[1761893153699,3.21020698,3826.8,3826.7,41.6268]
[1761893154193,0.00240698,3826.8,3826.7,41.95616]
[1761893154602,3.9645,3827.7,3827.6,0.8268]
[1761893154899,3.2078,3827.7,3827.6,0.8268]
[1761893155299,3.2078,3827.7,3827.6,1.15608]
[1761893155496,3.20977199,3827.7,3827.6,1.15608]
[1761893155699,3.20977199,3827.7,3827.6,1.1590049]
[1761893156698,3.42457199,3827.7,3827.6,9.9467249]
[1761893156899,3.96647199,3827.7,3827.6,9.9467249]
[1761893158304,3.96647199,3827.7,3827.6,0.0029249]
[1761893159602,3.96647199,3827.7,3827.6,0.5936249]
[1761893161202,3.20977199,3827.7,3827.6,0.8297249]
[1761893161402,3.42457199,3827.7,3827.6,0.8297249]
[1761893161601,3.20977199,3827.7,3827.6,0.8297249]
[1761893163102,3.42457199,3827.7,3827.6,0.8297249]
[1761893163706,3.20977199,3827.7,3827.6,0.8297249]
[1761893163907,0.75867199,3827.7,3827.6,0.8297249]
[1761893164107,0.75867199,3827.7,3827.6,9.9407249]
[1761893164501,0.54267199,3827.7,3827.6,9.9407249]
[1761893165108,0.75867199,3827.7,3827.6,9.9407249]
[1761893166906,0.00197199,3827.7,3827.6,9.9407249]
[1761893167503,0.00197199,3827.7,3827.6,50.7407249]
[1761893170013,0.75867199,3827.7,3827.6,50.7347249]
[1761893171213,0.00197199,3827.7,3827.6,50.7347249]
[1761893174517,0.80727199,3827.7,3827.6,50.7347249]
[1761893175417,0.22427199,3827.7,3827.6,50.7347249]
[1761893175915,0.00197199,3827.7,3827.6,50.7347249]
[1761893177016,0.22427199,3827.7,3827.6,50.7347249]
[1761893179518,0.00197199,3827.7,3827.6,50.7347249]
[1761893184235,0.00197199,3827.7,3827.6,52.61613748]
[1761893185233,0.00197199,3827.7,3827.6,50.7347249]
[1761893186733,0.00197199,3827.7,3827.6,50.7177249]
[1761893187036,0.00197199,3827.7,3827.6,52.06979888]
[1761893188431,4.9948,3828.4,3828.3,1.11092]
[1761893188638,4.9948,3828.4,3828.3,10.19892]
[1761893189231,3.423,3828.8,3828.7,0.7817]
[1761893189428,3.2100247,3828.8,3828.7,9.8707]
[1761893189634,4.0028247,3828.8,3828.7,9.8707]
[1761893191129,4.0028247,3828.8,3828.7,0.5643]
[1761893191328,0.7928,3828.2,3828.1,0.5439]
[1761893191529,4.0006,3828.2,3828.1,9.6309]
[1761893191935,4.0006,3828.2,3828.1,50.6687]
[1761893192538,3.423,3828.2,3828.1,50.6687]
[1761893193631,4.0006,3828.2,3828.1,50.6687]
[1761893195239,3.6501,3828.2,3828.1,50.6687]
[1761893195433,3.2078,3828.2,3828.1,50.6687]
[1761893195834,0.7928,3828.5,3828.4,0.5439]
[1761893196041,0.9355,3828.5,3828.4,9.6309]
[1761893197234,0.9355,3828.5,3828.4,0.5439]
[1761893197434,0.7928,3828.2,3828.1,40.8]
[1761893197640,0.7928,3828.2,3828.1,49.887]
[1761893198040,0.7928,3828.2,3828.1,50.2135]
[1761893199038,0.7928,3828.2,3828.1,41.1265]
[1761893199241,0.7928,3828.2,3828.1,50.2135]
[1761893199435,0.7928,3828.2,3828.1,9.4135]
[1761893199640,0.7928,3828.2,3828.1,9.8687]
[1761893201745,0.4423,3828.2,3828.1,9.8687]
[1761893202345,0.5683,3828.4,3828.3,0.7984]
[1761893203143,3.7761,3828.6,3828.5,0.9345]
[1761893203448,3.9934,3828.6,3828.5,10.0215]
[1761893204951,3.6508,3828.6,3828.5,10.0215]
[1761893205152,3.4335,3828.6,3828.5,10.0215]
[1761893205849,3.2078,3828.6,3828.5,10.0215]
[1761893206051,3.4335,3828.6,3828.5,10.0215]
[1761893206252,3.9934,3828.6,3828.5,10.0215]
[1761893206948,3.6508,3828.6,3828.5,10.0215]
[1761893207154,3.4335,3828.6,3828.5,10.0215]
[1761893207952,3.2078,3828.6,3828.5,10.0215]
[1761893209353,3.9934,3828.6,3828.5,10.0215]
[1761893210452,3.4335,3828.6,3828.5,10.0215]
[1761893210953,3.2078,3828.6,3828.5,10.0215]
[1761893213352,0.5705247,3828.8,3828.7,0.7984]
[1761893214157,0.7878247,3828.8,3828.7,0.7984]
[1761893217756,0.7878247,3828.8,3828.7,0.5709]
[1761893217948,0.9237,3828.5,3828.4,0.3357]
[1761893218157,0.443,3827.9,3827.8,2.34123465]
[1761893218457,0.443,3827.9,3827.8,9.3212]
[1761893218651,0.7856,3827.9,3827.8,9.6569]
[1761893219250,0.7856,3827.9,3827.8,9.98616]
[1761893219446,0.7856,3827.9,3827.8,10.21366]
[1761893219846,0.7856,3827.9,3827.8,9.8844]
[1761893221058,0.7856,3827.9,3827.8,9.6569]
[1761893221750,0.7856,3827.7,3827.6,0.0029249]
[1761893221958,5.7804,3827.7,3827.6,0.0029249]
[1761893222454,0.443,3826.5,3826.4,2.21423465]
[1761893222647,0.7856,3826.3,3826.2,5.65723465]
[1761893222850,0.7856,3826.3,3826.2,3.7787]
[1761893223054,0.7856,3826.3,3826.2,0.5709]
[1761893223556,0.443,3825.8,3825.7,0.2275]
[1761893223760,0.44494722,3825.8,3825.7,9.55151433]
[1761893224058,0.00194722,3825.8,3825.7,9.88721433]
[1761893224661,0.00194722,3825.8,3825.7,13.09501433]
[1761893225156,3.2078,3826.4,3825.7,13.09501433]
[1761893225362,3.2078,3826.4,3826.3,0.7984]
[1761893226359,3.20991726,3826.4,3826.3,0.7984]
[1761893226660,3.99551726,3826.4,3826.3,0.7984]
[1761893226857,3.99551726,3826.4,3826.3,0.5709]
[1761893227052,3.99551726,3826.4,3826.3,0.2352]
[1761893227260,0.7856,3825.8,3825.7,0.46551433]
[1761893227852,0.7856,3825.8,3825.7,0.80121433]
[1761893228964,0.7856,3825.8,3825.7,0.57371433]
[1761893229167,0.7856,3825.8,3825.7,0.80121433]
[1761893230264,0.7856,3825.8,3825.7,0.00281433]
[1761893231366,8.7856,3825.8,3825.7,0.00281433]
[1761893231567,0.7814,3825.1,3825.0,0.5776]
[1761893231864,0.7814,3825.1,3825.0,0.7927]
[1761893232564,0.7814,3825.1,3825.0,0.79552405]
[1761893233665,3.2078,3825.2,3825.1,1.1222]
[1761893233865,0.3349,3825.7,3825.0,0.14262405]
[1761893233866,0.5658,3825.7,3825.6,0.7927]
[1761893234068,0.7814,3825.7,3825.6,0.7927]
[1761893234367,0.4465,3825.7,3825.6,0.7927]
[1761893235563,0.2309,3825.7,3825.6,1.12215]
[1761893236469,0.2309,3825.7,3825.6,0.7927]
[1761893236661,0.7814,3825.7,3825.6,0.7927]
[1761893237163,0.7814,3825.7,3825.6,0.5776]
[1761893237364,0.7794,3825.5,3825.4,0.7878]
[1761893237667,0.7794,3825.5,3825.4,9.8828]
[1761893238259,0.9152,3825.5,3825.4,0.5627]
[1761893238460,0.7794,3825.2,3825.1,9.3249]
[1761893238661,0.7794,3825.2,3825.1,9.55]
[1761893239064,0.7794,3825.2,3825.1,9.8798]
[1761893239562,0.2266,3825.2,3825.1,10.2093]
[1761893239765,3.9872,3825.8,3825.7,0.458]
[1761893239966,3.9872,3825.8,3825.7,0.7878]
[1761893240273,3.9872,3825.8,3825.7,0.5627]
[1761893240769,3.9872,3825.8,3825.7,0.7878]
[1761893241669,0.4501,3825.6,3825.5,0.5627]
[1761893241874,0.7794,3825.6,3825.5,0.5627]
[1761893242369,0.7794,3825.6,3825.5,0.7878]
[1761893243174,0.7794,3825.6,3825.5,0.9183]
[1761893243469,0.4501,3825.6,3825.5,0.9183]
[1761893243872,0.7794,3825.6,3825.5,0.9183]
[1761893244473,0.2266,3825.6,3825.5,0.9183]
[1761893245568,3.2078,3825.8,3825.7,0.2329]
[1761893245776,3.4344,3825.8,3825.7,0.7878]
[1761893246066,0.5559,3826.1,3826.0,0.458]
[1761893246266,0.7794,3826.1,3826.0,0.7878]
[1761893247269,0.2266,3825.7,3825.6,0.78745]
[1761893247871,0.7794,3826.0,3825.9,0.7878]
[1761893248770,0.2266,3826.0,3825.9,0.7878]
[1761893249872,0.7794,3825.6,3825.5,0.5885]
[1761893250177,0.4501,3825.6,3825.5,0.5885]
[1761893250371,0.2266,3825.6,3825.5,0.9183]
[1761893251184,3.9872,3826.2,3826.1,0.7878]
[1761893252177,4.60821474,3826.2,3826.1,0.7878]
[1761893252377,4.68993289,3826.2,3826.1,0.7878]
[1761893253176,4.68993289,3826.2,3826.1,0.5627]
[1761893253379,0.7794,3825.9,3825.8,0.78743]
[1761893253680,0.4501,3825.9,3825.8,0.78743]
[1761893253877,0.4501,3825.9,3825.8,1.11723]
[1761893254278,0.7794,3825.9,3825.8,1.11723]
[1761893256479,3.4344,3826.2,3826.1,0.458]
[1761893256676,3.2078,3826.2,3826.1,1.89053843]
[1761893257280,0.9273954,3827.4,3827.3,0.7878]
[1761893257578,0.2266,3827.1,3827.0,0.3634]
[1761893257771,0.7794,3827.1,3827.0,9.3319]
[1761893257974,0.7794,3827.1,3827.0,0.5627]
[1761893258180,0.78140597,3827.1,3827.0,0.7878]
[1761893259177,0.78140597,3827.1,3827.0,0.5627]
[1761893259783,0.78140597,3827.1,3827.0,0.7878]
[1761893261078,0.7859,3826.7,3826.6,0.235]
[1761893261277,0.7859,3826.7,3826.6,0.79277]
[1761893261584,0.7859,3827.0,3826.9,0.8123]
[1761893262482,0.7859,3827.0,3826.9,0.5839]
[1761893262483,0.9185,3827.0,3826.9,0.5839]
[1761893262679,0.7859,3826.7,3826.6,0.79276]
[1761893263078,0.7859,3826.7,3826.6,0.8123]
[1761893265078,0.2301,3826.7,3826.6,0.8123]
[1761893268584,0.5606,3827.0,3826.9,0.8123]
[1761893268785,0.2301,3827.0,3826.9,0.8123]
[1761893269386,0.00200597,3827.1,3827.0,0.9516]
[1761893269989,0.23210597,3827.1,3827.0,0.9516]
[1761893270190,0.56260597,3827.1,3827.0,0.9516]
[1761893272188,0.23210597,3827.1,3827.0,0.9516]
[1761893274693,0.00200597,3827.1,3827.0,0.9516]
[1761893275094,0.00200597,3827.1,3827.0,1.15515694]
[1761893275291,0.00200597,3827.1,3827.0,0.9516]
[1761893275492,0.56260597,3827.1,3827.0,0.9516]
[1761893275985,0.78790597,3827.1,3827.0,0.9516]
[1761893277490,0.78790597,3827.1,3827.0,0.5839]
[1761893277692,0.78790597,3827.1,3827.0,9.9023]
[1761893278089,0.78790597,3827.1,3827.0,10.0416]
[1761893280195,0.45740597,3827.1,3827.0,10.0416]
[1761893280993,0.78790597,3827.1,3827.0,10.0416]
[1761893281196,0.5606,3826.6,3826.5,0.80697684]
[1761893281495,0.5606,3826.6,3826.5,0.6027]
[1761893281692,0.2301,3826.6,3826.5,9.6917]
[1761893281993,0.2301,3826.6,3826.5,10.0406]
[1761893282295,0.23210597,3827.1,3827.0,0.9516]
[1761893282593,0.78790597,3827.1,3827.0,0.9516]
[1761893283094,0.45740597,3827.1,3827.0,0.9516]
[1761893283395,0.78790597,3827.1,3827.0,0.9516]
[1761893283894,0.78790597,3827.1,3827.0,10.0406]
[1761893287189,0.78790597,3827.1,3827.0,0.8123]
[1761893287391,0.78790597,3827.1,3827.0,9.089]
[1761893287589,1.40119164,3827.1,3827.0,9.089]
[1761893288195,0.7859,3826.8,3826.7,0.5839]
[1761893288399,0.7859,3826.8,3826.7,9.9013]
[1761893288700,0.7859,3826.6,3826.5,12.8807]
[1761893289196,0.7859,3826.6,3826.5,13.1091]
[1761893290096,0.7859,3826.6,3826.5,13.2484]
[1761893290292,0.23210597,3827.1,3827.0,0.235]
[1761893290497,0.56260597,3827.1,3827.0,0.9516]
[1761893290696,0.78790597,3827.1,3827.0,0.9516]
[1761893291298,0.23210597,3827.1,3827.0,0.9516]
[1761893293398,0.00200597,3827.1,3827.0,0.9516]
[1761893294497,0.56260597,3827.1,3827.0,0.9516]
[1761893296210,0.00200597,3827.1,3827.0,0.9516]
[1761893297396,2.0085,3827.9,3827.8,0.455]
[1761893297603,0.2215,3827.9,3827.8,0.7926]
[1761893297803,4.9948,3828.0,3827.9,0.7926]
[1761893298299,0.2215,3828.1,3828.0,0.5878]
[1761893298496,0.2215,3828.1,3828.0,0.59101498]
[1761893298497,0.22401037,3828.1,3828.0,0.59101498]
[1761893298699,0.00251037,3828.1,3828.0,0.92861498]
[1761893299607,0.00251037,3828.1,3828.0,10.01761498]
[1761893301814,0.79281037,3828.1,3828.0,0.92861498]
[1761893302003,0.79281037,3828.1,3828.0,10.01761498]
[1761893303410,0.79281037,3828.1,3828.0,10.01661498]
[1761893303807,0.22401037,3828.1,3828.0,10.01661498]
[1761893305513,0.79981037,3828.1,3828.0,9.88381498]
[1761893306110,0.79981037,3828.1,3828.0,10.02451498]
[1761893307812,0.79981037,3828.1,3828.0,0.56551498]
[1761893309310,0.79981037,3828.1,3828.0,0.79291498]
[1761893309510,0.79981037,3828.1,3828.0,0.93361498]
[1761893310723,3.40481896,3828.6,3828.5,0.4884]
[1761893311615,3.40812554,3828.6,3828.5,0.4884]
[1761893312213,0.20032554,3828.6,3828.5,0.4884]
[1761893312419,3.40812554,3828.6,3828.5,0.4884]
[1761893312913,3.21110658,3828.6,3828.5,0.9418]
[1761893313614,4.99810658,3828.6,3828.5,0.9418]
[1761893316719,1.79030658,3828.6,3828.5,0.9418]
[1761893318815,0.00330658,3828.6,3828.5,0.9418]
[1761893319921,0.00330658,3828.6,3828.5,2.29400859]
[1761893321219,0.00330658,3828.6,3828.5,43.09400859]
[1761893321821,0.00330658,3828.6,3828.5,41.7418]
[1761893322121,0.00330658,3828.6,3828.5,0.9418]
[1761893322717,3.2078,3829.5,3829.4,0.7755]
[1761893323719,3.21083028,3829.5,3829.4,0.7755]
[1761893324113,3.21083028,3829.5,3829.4,0.5484]